Cogmind - Beta 17.1 @@@ ROGUE MODE // 2026.08.26 @ 20:02:08 Player: ATOM Result: Destroyed by SP-XPR(R) with Subdweller Machine Gun Performance ------------- Evolutions (0) 0 Regions Visited (3) 600 Robots Destroyed (28) 140 Value Destroyed (800) 800 Prototype IDs (4) 80 Alien Tech Used (0) 0 Bonus (0) 0 TOTAL SCORE: 1620 Bonus ------- None Cogmind --------- Core Integrity 0/250 Matter 252/300 Energy 123/125 System Corruption 5% Temperature Cool (0) Movement Treading (160) Location -10/Subcaves Parts ------- > --- POWER (1) -------- Light Ion Engine > --- PROPULSION (2) --- Light Treads Light Treads > --- UTILITY (2) ------ Large Storage Unit > --- WEAPON (2) ------- Improved Light Cannon > --- INVENTORY (15) --- Compact Wheel Compact Wheel Sensor Array Signal Interpreter Shield Generator Sensor Drone Bay (20/20) Grenade Launcher Mining Laser Peak State ------------ > --- POWER ------------ Light Ion Engine > --- PROPULSION ------- Light Treads Light Treads > --- UTILITY ---------- Large Storage Unit Sensor Drone Bay > --- WEAPON ----------- Improved Light Cannon Improved Light Cannon > --- INVENTORY -------- Compact Wheel Compact Wheel Sensor Array Signal Interpreter Shield Generator Grenade Launcher Mining Laser [Rating: 16] Favorites ----------- Power Light Ion Engine Engine Light Ion Engine Propulsion Light Treads Treads Light Treads Leg Aluminum Leg Utility Shield Generator Device Shield Generator Storage Small Storage Unit Weapon Improved Light Cannon Energy Gun EM Pulse Gun Ballistic Gun Assault Rifle Ballistic Cannon Improved Light Cannon Build | -11 -10 -10 -10 ------- Run | Yrd Mat Min Sub Slots Evolved . | . . . . Power . | . . . . Propulsion . | . . . . Utility . | . . . . Weapon . | . . . . Parts Attached 17 | 6 5 6 . Power 3 | 1 . 2 . Engine 3 | 1 . 2 . Core . | . . . . Reactor . | . . . . Propulsion 5 | 2 2 1 . Treads 4 | 2 2 . . Leg 1 | . . 1 . Wheel . | . . . . Hover . | . . . . Flight . | . . . . Utility 5 | 1 1 3 . Device 3 | . 1 2 . Storage 2 | 1 . 1 . Processor . | . . . . Hackware . | . . . . Protection . | . . . . Artifact . | . . . . Weapon 4 | 2 2 . . Energy Gun 1 | 1 . . . Energy Cannon . | . . . . Ballistic Gun 1 | 1 . . . Ballistic Cannon 2 | . 2 . . Launcher . | . . . . Special Weapon . | . . . . Impact Weapon . | . . . . Slashing Weapon . | . . . . Piercing Weapon . | . . . . Special Melee Weapon . | . . . . Unidentified Prototypes 1 | . . 1 . Parts Lost 2 | . . . 2 Power . | . . . . Propulsion . | . . . . Utility 1 | . . . 1 Weapon 1 | . . . 1 Highest Loss Streak 1 | . . . 1 To Critical Strikes . | . . . . Average Backups 6 | 1 6 7 8 Power 1 | . 1 . . Propulsion 1 | 1 2 2 2 Utility 1 | . 1 2 4 Weapon 1 | . 1 2 2 Tool/Special . | . . . . Unused Backups 7 | . 1 . 6 Power . | . . . . Propulsion 2 | . . . 2 Utility 2 | . . . 2 Weapon 3 | . 1 . 2 Tool/Special . | . . . . Average Slot Usage (%) 95 | . 93 100 95 Engine 14 | . 14 14 14 Treads 27 | . 27 28 28 Device 10 | . 8 14 13 Storage 14 | . 14 14 14 Energy Gun 4 | . 8 . . Ballistic Gun 2 | . 4 . . Ballistic Cannon 20 | . 14 28 24 Peak Build Rating 16 | 6 10 16 10 Average Rating 9 | 3 8 10 9 On Entrance 6 | . 6 10 11 Avg Prop Armor Cover (%) . | . . . . Naked Turns . | . . . . Heaviest Build 33 | 12 18 33 32 Greatest Support 40 | 40 40 40 40 Greatest Overweight (x) . | . . . . Average Overweight (x) . | . . . . Largest Inventory Capacity 15 | 8 8 15 15 Average Capacity 11 | 6 8 14 15 Most Carried 8 | 4 8 8 8 Average Carried 6 | 1 6 7 8 Final Capacity 15 | 8 8 15 15 Final Carried 8 | 3 8 8 8 Class Distribution -------------------- 100% | Mutant Dominant Class ---------------- Mutant | -10/Materials Mutant | -10/Mines Mutant | -10/Subcaves Resources | -11 -10 -10 -10 ----------- Run | Yrd Mat Min Sub Matter Collected 995 | 252 315 196 232 Remotely . | . . . . Salvage Created 605 | . 408 91 106 Parts 33 | . 24 6 3 Haulers Intercepted . | . . . . Recyclers Shooed . | . . . . Parts Field Recycled . | . . . . Retrieved Matter . | . . . . Parts Self-Destructed 11 | . . . 11 Prevented . | . . . . Parts Restored . | . . . . Kills | -11 -10 -10 -10 ------- Run | Yrd Mat Min Sub Combat Hostiles Destroyed 24 | . 12 7 5 Guns 3 | . 3 . . Cannons 21 | . 9 7 5 Classes Destroyed 5 | . 4 . 1 Operator 1 | . 1 . . Watcher 3 | . 3 . . Swarmer 8 | . 3 5 . Grunt 11 | . 9 2 . Subdweller 5 | . . . 5 Best Kill Streak 4 | . 4 3 2 Combat Bots Only 3 | . 3 3 2 Max Kills in Single Turn 1 | . 1 1 1 Gunslinging . | . . . . Exploded . | . . . . Melee . | . . . . Uniques/NPCs Destroyed . | . . . . Combat | -11 -10 -10 -10 -------- Run | Yrd Mat Min Sub Hostile Shots Fired 120 | . 41 39 40 Missed 35 | . 11 12 12 Hits 85 | . 30 27 28 Projectile 85 | . 30 27 28 Critical Strikes 3 | . 1 . 2 Damage Taken 1014 | . 251 170 593 Core 271 | . 23 14 234 Absorbed by Shields 144 | . 72 72 . Regen/Repaired (Parts) 19 | . 19 . . Core Remaining (%) 100 | 100 . . . Volleys Fired 93 | . 44 18 31 Largest 2 | . 2 2 2 Hottest 73 | . 73 66 66 Shots Fired 166 | . 88 37 41 Gun 47 | . 47 . . Cannon 119 | . 41 37 41 Launcher . | . . . . Special . | . . . . Kinetic 139 | . 61 37 41 Thermal . | . . . . Explosive . | . . . . Electromagnetic 27 | . 27 . . Robot Hit Streak 14 | . 14 5 8 Robot Miss Streak 6 | . 6 6 1 Penetration Max . | . . . . Secondary Targets . | . . . . Shots Hit Robots 94 | . 43 18 33 Core Hits 41 | . 22 8 11 Critical Kills . | . . . . Critical Parts Destroyed . | . . . . Critical Strikes 1 | . . . 1 Blast 1 | . . . 1 Melee Attacks . | . . . . Impact . | . . . . Slashing . | . . . . Piercing . | . . . . Sneak Attacks . | . . . . Combat Hostiles . | . . . . Follow-up Attacks . | . . . . Damage Inflicted 1980 | . 904 375 701 Guns 332 | . 332 . . Cannons 1543 | . 467 375 701 Explosions 105 | . 105 . . Melee . | . . . . Ramming . | . . . . Kinetic 1639 | . 563 375 701 Thermal 105 | . 105 . . Explosive . | . . . . Electromagnetic 236 | . 236 . . Impact . | . . . . Slashing . | . . . . Piercing . | . . . . Highest Corruption 5 | . 5 5 5 Average Corruption 4 | . 4 5 5 Corruption Purged . | . . . . Corruption Blocked . | . . . . Effects 60 | . 19 29 12 Message Errors 14 | . 6 6 2 Matter Fused 15 | . 5 6 4 Heat Flow Errors 4 | . 1 3 . Energy Discharges 8 | . 3 4 1 Data Loss (minor) 9 | . 3 3 3 Data Loss (major) 4 | . . 3 1 Misfires 1 | . . 1 . Alerts 4 | . 1 3 . Weapon Failures 1 | . . . 1 Overload Shots . | . . . . Overflow Damage 19 | . 16 3 . Projectiles 19 | . 16 3 . Explosions . | . . . . Melee . | . . . . Knockbacks 19 | . 4 7 8 Impact . | . . . . Kinetic 17 | . 4 5 8 Secondary 2 | . . 2 . Self-Inflicted Damage . | . . . . Shots . | . . . . Rammed . | . . . . Targets Rammed . | . . . . Kicked . | . . . . Crushed . | . . . . Highest Temperature 220 | . 217 220 . Average Temperature 39 | . 31 49 . Received Heat Transfer 194 | . 103 28 63 Siege Activations . | . . . . Martial Activations . | . . . . Shielding Activations . | . . . . Robots Disrupted . | . . . . Combat Hostiles . | . . . . Robots Corrupted . | . . . . Combat Hostiles . | . . . . Parts Fried 4 | . 4 . . Impact Corruptions . | . . . . Robots Melted . | . . . . Combat Hostiles . | . . . . Parts Melted 1 | . 1 . . Heat Transferred 150 | . 150 . . Parts Sabotaged . | . . . . Parts Stolen . | . . . . Parts Stripped . | . . . . Power Chain Reactions 2 | . 2 . . Alert | -11 -10 -10 -10 ------- Run | Yrd Mat Min Sub Maximum Alert Level . | . . . . Low Security (%) 100 | 100 100 100 . Level 1 . | . . . . Level 2 . | . . . . Level 3 . | . . . . Level 4 . | . . . . Level 5 . | . . . . High Security . | . . . . Max Security . | . . . . Peak Influence 137 | . 137 64 . Initial 41 | . . 41 . Average 29 | . 41 13 . Influence Increases 593 | . 398 195 . Destroy 0b10 Robot/C 380 | . 240 140 . Destroy 0b10 Robot/NC 20 | . 20 . . Destroy Leader 86 | . 56 30 . Successful Hack 15 | . 15 . . Disable Machine 45 | . 30 15 . Destroy Structure 17 | . 7 10 . Lose Combat Pursuer 30 | . 30 . . Influence Decreases 593 | . 291 302 . Entered New Map 66 | . . 66 . Time Decay 527 | . 291 236 . Squads Dispatched 1 | . 1 . . Investigation 1 | . 1 . . Extermination . | . . . . Reinforcement . | . . . . Assault . | . . . . Garrison . | . . . . Intercept . | . . . . Searches Triggered . | . . . . Construction Impeded . | . . . . Haulers Reinforced . | . . . . Active Scanning Responses . | . . . . Cargo Convoy Interrupts . | . . . . Stealth | -11 -10 -10 -10 --------- Run | Yrd Mat Min Sub Distress Signals 4 | . 4 . . Communications Jammed . | . . . . Distress Signals . | . . . . Times Spotted 34 | . 21 7 6 Peak Tracking Total 3 | . 3 3 2 Tactical Retreats 1 | . 1 . . Traps | -11 -10 -10 -10 ------- Run | Yrd Mat Min Sub Traps Triggered 5 | . 5 . . Indirectly . | . . . . Trap Hack Attempts . | . . . . Triggered . | . . . . Disarmed . | . . . . Reprogrammed . | . . . . Reused . | . . . . Traps Extracted . | . . . . Installed . | . . . . Triggered . | . . . . Machines | -11 -10 -10 -10 ---------- Run | Yrd Mat Min Sub Machines Disabled 3 | . 2 1 . Max in Single Turn 1 | . 1 1 . Machines Repaired . | . . . . Machines Dismantled . | . . . . Machines Sabotaged . | . . . . Overloaded Fab Kills . | . . . . Hacking | -11 -10 -10 -10 --------- Run | Yrd Mat Min Sub Machines Accessed 10 | . 8 1 1 Terminals 6 | . 6 . . Fabricators . | . . . . Repair Stations 1 | . 1 . . Recycling Units 1 | . 1 . . Scanalyzers . | . . . . Garrison Access . | . . . . Total Hacks 27 | . 21 1 5 Successful 15 | . 9 1 5 Failed 12 | . 12 . . Catastrophic 1 | . 1 . . Database Lockouts . | . . . . Manual . | . . . . Terminals 16 | . 16 . . Fabricators . | . . . . Repair Stations 2 | . 2 . . Recycling Units 3 | . 3 . . Scanalyzers . | . . . . Garrison Access . | . . . . Terminal Hacks 10 | . 4 1 5 Record 5 | . . . 5 Prototype ID Bank 2 | . 2 . . Open Door 1 | . . 1 . Terminal Index 1 | . 1 . . Reinforcement Status 1 | . 1 . . Fabricator Hacks . | . . . . Repair Station Hacks 2 | . 2 . . Scan Component 1 | . 1 . . Repair 1 | . 1 . . Recycling Unit Hacks 3 | . 3 . . Report Inventory 1 | . 1 . . Retrieve Matter 1 | . 1 . . Retrieve Components 1 | . 1 . . Scanalyzer . | . . . . Garrison Access Hacks . | . . . . Unauthorized Hacks . | . . . . Terminals . | . . . . Fabricators . | . . . . Repair Stations . | . . . . Recycling Units . | . . . . Scanalyzers . | . . . . Garrison Access . | . . . . Data Cores Recovered . | . . . . Used . | . . . . Hacking Detections 6 | . 6 . . Full Trace Events . | . . . . Feedback Events . | . . . . Feedback Blocked . | . . . . Robot Schematics Acquired . | . . . . Robots Built . | . . . . Authchips . | . . . . Time . | . . . . Total Robot Build Rating . | . . . . Part Schematics Acquired . | . . . . Parts Built . | . . . . Authchips . | . . . . Time . | . . . . Total Part Build Rating . | . . . . Part Studies Acquired . | . . . . Parts Repaired 1 | . 1 . . Time 32 | . 32 . . Parts Recycled . | . . . . Recycled Matter . | . . . . Retrieved Matter 35 | . 35 . . Retrieved Components 9 | . 9 . . Parts Scanalyzed . | . . . . Part Schematics Acquired . | . . . . Parts Damaged . | . . . . Bothacking | -11 -10 -10 -10 ------------ Run | Yrd Mat Min Sub Used RIF Installer . | . . . . Robots Hacked . | . . . . Non-combat . | . . . . Combat . | . . . . Robot Hacks Applied . | . . . . Relay Couplers Released . | . . . . Fabnet Peak Effective % . | . . . . Robots Rewired . | . . . . Allies Hacked . | . . . . Hacks Repelled . | . . . . Allies | -11 -10 -10 -10 -------- Run | Yrd Mat Min Sub Total Allies . | . . . . Largest Group . | . . . . Highest-Rated Group . | . . . . Highest-Rated Ally . | . . . . Total Orders . | . . . . Ally Attacks . | . . . . Total Damage . | . . . . Kills . | . . . . Allies Corrupted . | . . . . Allies Melted . | . . . . Intel | -11 -10 -10 -10 ------- Run | Yrd Mat Min Sub Active Infowar (turns) 444 | . . 1 443 Seismic 444 | . . 1 443 Robot Analysis Total . | . . . . Derelict Logs Recovered 2 | . . 2 . Drone Launches . | . . . . Drone Recoveries . | . . . . Exploration | -11 -10 -10 -10 ------------- Run | Yrd Mat Min Sub Turns Passed 3591 | 86 1816 1223 466 Spaces Moved 1964 | 46 968 714 236 Core 1 | 1 . . . Treads 1963 | 45 968 714 236 Legs . | . . . . Wheels . | . . . . Hover . | . . . . Flight . | . . . . Fastest Speed 50 | 50 160 160 160 Average Speed 159 | 157 160 160 160 Slowest Speed 160 | 160 160 160 160 Overloaded Moves . | . . . . Propulsion Burnouts . | . . . . Robots Hopped . | . . . . Potential Cave-ins . | . . . . Cave-ins Triggered . | . . . . Exploration Rate (%) 53 | 3 97 93 21 Regions Visited 3 Branch Regions 2 Pre-discovered Areas 2 | . . 2 . Known Exits Taken . | . . . . Unknown Exits Taken 3 | 1 1 1 . Scrap Searched 2 | . . 2 . Spaces Dug . | . . . . Terrain Destroyed 14 | . 4 10 . Melee . | . . . . Projectile 4 | . 2 2 . AOE 10 | . 2 8 . Terrain Rammed . | . . . . Walls Destroyed . | . . . . Machines Disabled . | . . . . Actions | -11 -10 -10 -10 --------- Run | Yrd Mat Min Sub Total 2247 | 60 1147 757 283 Wait 140 | . 115 10 15 Move 1961 | 45 967 713 236 Hop . | . . . . Pick Up 21 | 9 9 3 . Fast Attach 2 | . 2 . . Attach 8 | 6 2 . . Detach . | . . . . Swap 14 | . 4 9 1 Drop 8 | . 4 4 . Fire 93 | . 44 18 31 Melee . | . . . . Ram . | . . . . Kick . | . . . . Crush . | . . . . Escape Stasis . | . . . . Rewire . | . . . . Trap . | . . . . Miscellaneous . | . . . . Route ------- -11/Scrapyard -10/Materials (discovered 5 exits: [*Mat x3] / *Min / *Sub) -10/Mines (discovered 3 exits: [*Mat x2] / *Sub) -10/Subcaves (discovered 3 exits: [*Mat x2] / Rec) History --------- Turn | Location | Event 48 | -11/Scrapyard | Discovered new exit (range 16) 87 | -11/Scrapyard | Entered Materials 316 | -10/Materials | Build established: Mutant 524 | -10/Materials | Discovered new exit (range 10) 669 | -10/Materials | Discovered new exit (range 16) 1324 | -10/Materials | Discovered new exit (range 10) 1588 | -10/Materials | Repaired Shield Generator 1743 | -10/Materials | Discovered new exit (range 16) 1747 | -10/Materials | Discovered new exit (range 14) 1903 | -10/Materials | Entered Mines 1911 | -10/Mines | Met a Derelict bent on vengeance 2147 | -10/Mines | Discovered new exit (range 13) 2529 | -10/Mines | Found a hidden stash of uninstalled traps 2695 | -10/Mines | Discovered new exit (range 15) 2813 | -10/Mines | Learned location of Zion (-7) 2882 | -10/Mines | Found the Drone Emporium 2887 | -10/Mines | Found Prototype Device 2899 | -10/Mines | Discovered new exit (range 15) 2901 | -10/Mines | Identified Sensor Drone Bay 3126 | -10/Mines | Entered Subcaves 3127 | -10/Subcaves | Approached by a straggling Scientist 3230 | -10/Subcaves | Discovered new exit (range 11) 3471 | -10/Subcaves | Core integrity fell below 50% 3500 | -10/Subcaves | Visited Clippyterm 3505 | -10/Subcaves | Identified exit to Recycling 3505 | -10/Subcaves | Learned Research security intel 3549 | -10/Subcaves | Discovered new exit (range 15) 3564 | -10/Subcaves | Ambushed by Subdwellers from Twisted Machinery 3568 | -10/Subcaves | Core integrity fell below 20% 3592 | -10/Subcaves | Destroyed by SP-XPR(R) with Subdweller Machine Gun Last Messages --------------- performed certain activities at altars. Maybe a relevant keyword would similarly unlock the true potential of your pious nature. Or see you struck down by otherworldly wrath, I don't know. 03516_ Subatomizers dissect the Sub. Optics. 03516_ Acquired 4 matter. 03517_ Acquired 12 matter. 03518_ System corrupted: Matter fused (-5). 03521_ Acquired 8 matter. 03525_ Acquired 2 matter. 03531_ Subatomizers dissect the Sub. Optics. 03549_ System corrupted: Component data lost. 03549_ EXIT=FOUND 03564_ SP-XPR(R) emerges from the Twisted Machinery. 03569_ Seismic Detector destroyed. 03570_ PS-3TR(R) destroyed. 03575_ System corrupted: Matter fused (-5). 03590_ SP-XPR(R) knocked back. Map ----- +----------------------------------------------------+ | ??????????????????????????????????# ## #? # | | ??????????????????????????????????## ### #?? | | ???????????????????????????????????## # #?## | | ????????????????????????????????????## ### | | ?????????????????????????????????????#### # | | ????????????????????????????????????????# | | ????????????????????????????????#####?### ## # | | ????????????????????????????????#"""### ###### | | ????????????????????????????????#"" ## = ##??## | | ????????????????????????????????#"X % ##??# | | ????????????????????????????????#"" ## ! ##?? | | ????????????????????????????????#"""## ! #?? | | ????????????????????????????????########%& #?? | | ???????????????????????????????????????##% #?? | | ????????????????????????????????????????# ##?# | | ????????????????????????????????????????# ##??# | | ???????????????????????????????????????## # #??? | | ???????????????????????????????????????# # ##??? | | ???????????????????????????????????????## # #### | | ??????????????????????????????????????## | | ?????????????????????????????????????## | | ?????????????????????????????????????# | | ????????????????????##???????????????## ##### | | ?????????????#?????## ??????????????## ##?? | | ?????????????# % # ####?######### #? | | ??????????????????#